fUSD/lending_fUSD_20250720
["ID","MTS","AMOUNT","RATE_DAILY","PERIOD"]
[373567215,1753047032591,-600.0,0.0001785,2]
[373567216,1753047032602,-151.0,0.0001785,2]
[373567217,1753047032611,-600.0,0.0001785,2]
[373567218,1753047032621,-151.0,0.0001785,2]
[373567219,1753047032631,-151.0,0.0001785,2]
[373567220,1753047032641,-500.0,0.0001785,2]
[373567222,1753047032650,-151.0,0.0001785,2]
[373567224,1753047032660,-500.0,0.0001785,2]
[373567226,1753047032670,-151.0,0.0001785,2]
[373567228,1753047032679,-500.0,0.0001785,2]
[373567230,1753047032690,-294.30161956,0.0001785,2]
[373567232,1753047032699,-500.0,0.0001785,2]
[373567234,1753047032709,-500.0,0.0001785,2]
[373567236,1753047032718,-500.0,0.0001785,2]
[373567237,1753047032728,-500.0,0.0001785,2]
[373567239,1753047032738,-500.0,0.0001785,2]
[373567241,1753047032747,-500.0,0.0001785,2]
[373567243,1753047032757,-500.0,0.0001785,2]
[373567245,1753047032766,-606.29392553,0.0001785,2]
[373567247,1753047032775,-500.0,0.0001785,2]
[373567249,1753047032785,-500.0,0.0001785,2]
[373567251,1753047032794,-500.0,0.0001785,2]
[373567253,1753047032804,-500.0,0.0001785,2]
[373567255,1753047032813,-500.0,0.0001785,2]
[373567257,1753047032823,-500.0,0.0001785,2]
[373567259,1753047032832,-500.0,0.0001785,2]
[373567263,1753047032928,-500.0,0.0001785,2]
[373567264,1753047032939,-500.0,0.0001785,2]
[373567265,1753047032948,-500.0,0.0001785,2]
[373567266,1753047032957,-500.0,0.0001785,2]
[373567267,1753047032966,-4749.24456756,0.0001785,2]
[373567268,1753047032975,-187.13202014,0.0001786,2]
[373567269,1753047032984,-2148.16,0.00017862,2]
[373567270,1753047032995,-880.43,0.00017863,2]
[373567272,1753047033004,-5631.25,0.00017871,2]
[373567273,1753047033014,-1000.0,0.00017881,2]
[373567275,1753047033023,-300.0,0.00017881,2]
[373567277,1753047033032,-250.0,0.00017881,2]
[373567279,1753047033041,-533.79,0.00017915,2]
[373567281,1753047033051,-192.62,0.00017922,2]
[373567283,1753047033061,-150.0,0.00017933,2]
[373567285,1753047033070,-364.563372,0.00018,2]
[373567287,1753047033080,-275.06872957,0.00018032,2]
[373567289,1753047033089,-150.0,0.00018116,2]
[373567291,1753047033099,-220.0,0.00018127,2]
[373567293,1753047033108,-152.91,0.00018155,2]
[373567295,1753047033117,-152.91,0.00018167,2]
[373567297,1753047033127,-152.91,0.00018179,2]
[373567299,1753047033136,-152.91,0.00018192,2]
[373567301,1753047033146,-11033.21977196,0.000182,2]
[373567303,1753047033159,-152.91,0.00018204,2]
[373567305,1753047033168,-628.48206232,0.00018204,2]
[373567307,1753047033178,-30000.0,0.00018205,2]
[373567309,1753047033187,-152.91,0.00018216,2]
[373567311,1753047033198,-152.91,0.00018228,2]
[373567313,1753047033209,-183.0,0.00018235,2]
[373567315,1753047033217,-152.91,0.0001824,2]
[373567317,1753047033226,-152.91,0.00018252,2]
[373567319,1753047033237,-152.91,0.00018264,2]
[373567321,1753047033247,-152.91,0.00018276,2]
[373567323,1753047033257,-152.91,0.00018288,2]
[373567325,1753047033266,-183.0,0.00018293,2]
[373567327,1753047033275,-152.91,0.00018301,2]
[373567329,1753047033284,-549.32,0.00018308,2]
[373567331,1753047033294,-152.91,0.00018313,2]
[373567333,1753047033303,-152.91,0.00018325,2]
[373567335,1753047033312,-183.0,0.00018329,2]
[373567337,1753047033321,-241.17,0.00018329,2]
[373567339,1753047033330,-152.91,0.00018337,2]
[373567341,1753047033339,-506.0,0.00018397,4]
[373567343,1753047033349,-183.0,0.00018409,2]
[373567345,1753047033358,-165.65,0.00018423,2]
[373567347,1753047033367,-183.0,0.00018487,2]
[373567349,1753047033376,-151.852312,0.00018514,2]
[373567351,1753047033386,-151.0,0.00018514,2]
[373567353,1753047033394,-600.0,0.00018514,2]
[373567355,1753047033403,-346.92554585,0.00018514,2]
[373567357,1753047033414,-160.0,0.00018514,2]
[373567358,1753047033423,-7142.856,0.00018514,2]
[373567360,1753047033433,-197.00432068,0.00018514,2]
[373567363,1753047033443,-231.28369723,0.00018514,2]
[373567364,1753047033452,-151.0,0.00018518,2]
[373567367,1753047033463,-151.0,0.00018518,2]
[373567368,1753047033473,-151.0,0.00018518,2]
[373567370,1753047033482,-151.0,0.00018518,2]
[373567372,1753047033492,-151.0,0.00018518,2]
[373567374,1753047033501,-183.0,0.00018532,2]
[373567376,1753047033510,-1166.5837786,0.00018565,2]
[373567378,1753047033519,-6990.31454288,0.0001863,2]
[373567381,1753047033532,-106.81545712,0.0001863,2]
[373567383,1753047033541,-183.0,0.00018642,2]
[373567385,1753047033550,-183.0,0.0001871,2]
[373567387,1753047033559,-119.91507715,0.0001878,2]
[373567390,1753047033585,-261.08492285,0.0001878,2]
[373567392,1753047033595,-183.0,0.00018782,2]
[373567394,1753047033604,-183.0,0.00018798,2]
[373567396,1753047033613,-508.0,0.00018798,2]
[373567398,1753047033622,-1000.0,0.00018813,2]
[373567400,1753047033632,-183.0,0.00018832,2]
[373567402,1753047033641,-183.0,0.00018835,2]
[373567404,1753047033650,-902.4364638,0.00018867,2]
[373567406,1753047033662,-3682.32722897,0.00018867,2]
[373567408,1753047033671,-1770.3014722,0.00018869,2]
[373567410,1753047033680,-9030.68815881,0.00018878,2]
[373567413,1753047033696,-2673.46317492,0.00018878,2]
[373567415,1753047033705,-527.23603986,0.0001888,2]
[373567417,1753047033714,-150.0,0.00018888,2]
[373567418,1753047033723,-150.0,0.00018888,2]
[373567421,1753047033732,-150.0,0.00018888,2]
[373567422,1753047033742,-150.0,0.00018888,2]
[373567425,1753047033751,-150.0,0.00018888,2]
[373567426,1753047033761,-150.0,0.00018888,2]
[373567429,1753047033770,-150.0,0.00018888,2]
[373567430,1753047033780,-150.0,0.00018888,2]
[373567432,1753047033789,-150.0,0.00018888,2]
[373567434,1753047033798,-150.0,0.00018888,2]
[373567436,1753047033808,-150.0,0.00018888,2]
[373567438,1753047033818,-150.0,0.00018888,2]
[373567440,1753047033827,-150.0,0.00018888,2]
[373567441,1753047033836,-150.0,0.00018888,2]
[373567443,1753047033846,-5088.23209615,0.00018896,2]
[373567445,1753047033855,-1770.3014722,0.00018898,2]
[373567447,1753047033864,-499.24534586,0.00018898,2]
[373567449,1753047033873,-924.35059196,0.00018905,2]
[373567451,1753047033885,-10779.80074177,0.00018905,2]
[373567453,1753047033895,-562.02415196,0.00018915,2]
[373567455,1753047033905,-4866.99508599,0.00018916,2]
[373567457,1753047033914,-499.24534586,0.00018918,2]
[373567459,1753047033924,-183.0,0.00018919,2]
[373567461,1753047033933,-1580.56357538,0.0001892,2]
[373567463,1753047033944,-200.0,0.00018921,2]
[373567465,1753047033953,-200.0,0.00018929,2]
[373567467,1753047033963,-5088.23209615,0.00018929,2]
[373567469,1753047033972,-4584.76369277,0.00018929,2]
[373567471,1753047033982,-1580.56357538,0.00018932,2]
[373567473,1753047033991,-11704.15133373,0.00018937,2]
[373567475,1753047034001,-1580.56357538,0.00018943,2]
[373567477,1753047034011,-210.86573235,0.00018948,2]
[373567479,1753047034020,-1026.21588199,0.00018951,2]
[373567481,1753047034030,-5088.23209615,0.00018951,2]
[373567483,1753047034040,-160.0,0.00018953,2]
[373567485,1753047034049,-476.8747822,0.00018953,2]
[373567487,1753047034059,-839.31074571,0.00018953,2]
[373567489,1753047034068,-1770.3014722,0.00018953,2]
[373567491,1753047034078,-562.02415196,0.00018954,2]
[373567493,1753047034088,-671.04189671,0.00018965,2]
[373567495,1753047034098,-1026.21588199,0.00018966,2]
[373567497,1753047034107,-499.24534586,0.0001897,2]
[373567499,1753047034116,-4784.97124285,0.00018975,2]
[373567501,1753047034125,-150.0,0.00018975,2]
[373567503,1753047034135,-1026.21588199,0.00018975,2]
[373567505,1753047034144,-200.0,0.0001898,2]
[373567507,1753047034157,-4866.99508599,0.00018984,2]
[373567509,1753047034166,-527.23603986,0.00018986,2]
[373567511,1753047034175,-527.23603986,0.00018987,2]
[373567513,1753047034184,-4866.99508599,0.00018992,2]
[373567515,1753047034193,-671.04189671,0.00018993,2]
[373567517,1753047034205,-4584.76369277,0.00018996,2]
[373567519,1753047034214,-562.02415196,0.00018997,2]
[373567521,1753047034223,-671.04189671,0.00018998,2]
[373567523,1753047034234,-3000.0,0.00019,5]
[373567525,1753047034245,-150.0,0.00019004,2]
[373567526,1753047034254,-150.0,0.00019011,2]
[373567528,1753047034263,-241.17,0.00019016,2]
[373567530,1753047034272,-150.0,0.00019022,2]
[373567532,1753047034281,-150.0,0.00019038,2]
[373567534,1753047034291,-1000.0,0.00019057,2]
[373567536,1753047034300,-600.0,0.00019062,2]
[373567538,1753047034310,-7407.141672,0.00019062,2]
[373567540,1753047034319,-150.0,0.00019063,2]
[373567542,1753047034330,-2500.0,0.00019063,2]
[373567544,1753047034339,-151.0,0.00019075,2]
[373567546,1753047034348,-151.0,0.00019075,2]
[373567548,1753047034357,-150.0,0.00019098,2]
[373567550,1753047034366,-150.0,0.00019098,2]
[373567552,1753047034376,-151.0,0.000191,2]
[373567554,1753047034385,-151.0,0.000191,2]
[373567556,1753047034395,-151.0,0.000191,2]
[373567558,1753047034404,-1680.0,0.00019104,2]
[373567559,1753047034413,-150.0,0.00019135,2]
[373567561,1753047034422,-150.0,0.0001915,2]
[373567563,1753047034431,-1268.0,0.00019157,2]
[373567565,1753047034440,-961.0,0.00019157,2]
[373567567,1753047034450,-807.0,0.00019157,2]
[373567569,1753047034459,-2017.0,0.00019157,2]
[373567571,1753047034468,-1687.0,0.00019157,2]
[373567573,1753047034477,-1287.0,0.00019157,2]
[373567574,1753047034486,-1167.0,0.00019157,2]
[373567576,1753047034495,-889.0,0.00019157,2]
[373567578,1753047034504,-156.421,0.00019157,2]
[373567580,1753047034514,-952.0,0.00019157,2]
[373567582,1753047034523,-4126.0,0.00019157,2]
[373567583,1753047034532,-6050.0,0.00019157,2]
[373567584,1753047034541,-500.0,0.00019159,2]
[373567585,1753047034552,-353.4936188,0.00019159,2]
[373567586,1753047034561,-599.55231807,0.00019159,2]
[373567587,1753047034570,-479.7433615,0.00019159,2]
[373567588,1753047034580,-488.23866663,0.00019159,2]
[373567589,1753047034589,-500.0,0.00019178,2]
[373567590,1753047034599,-500.0,0.00019178,2]
[373567591,1753047034608,-500.0,0.00019178,2]
[373567592,1753047034620,-500.0,0.00019178,2]
[373567593,1753047034630,-500.0,0.00019178,2]
[373567594,1753047034640,-458.81648769,0.00019178,2]
[373567595,1753047034649,-500.0,0.00019178,2]
[373567596,1753047034659,-500.0,0.00019178,2]
[373567597,1753047034668,-500.0,0.00019178,2]
[373567598,1753047034678,-500.0,0.00019178,2]
[373567599,1753047034687,-500.0,0.00019178,2]
[373567600,1753047034697,-500.0,0.00019178,2]
[373567602,1753047034707,-500.0,0.00019178,2]
[373567604,1753047034716,-500.0,0.00019178,2]
[373567606,1753047034726,-500.0,0.00019178,2]
[373567607,1753047034735,-500.0,0.00019178,2]
[373567608,1753047034744,-500.0,0.00019178,2]
[373567609,1753047034754,-500.0,0.00019178,2]
[373567610,1753047034764,-500.0,0.00019178,2]
[373567611,1753047034774,-500.0,0.00019178,2]
[373567612,1753047034783,-500.0,0.00019178,2]
[373567613,1753047034792,-500.0,0.00019178,2]
[373567614,1753047034802,-500.0,0.00019178,2]
[373567615,1753047034811,-646.89188801,0.00019178,2]
[373567616,1753047034821,-500.0,0.00019178,2]
[373567617,1753047034830,-500.0,0.00019178,2]
[373567618,1753047034839,-500.0,0.00019178,2]
[373567619,1753047034848,-500.0,0.00019178,2]
[373567620,1753047034858,-500.0,0.00019178,2]
[373567621,1753047034867,-500.0,0.00019178,2]
[373567622,1753047034877,-500.0,0.00019178,2]
[373567623,1753047034886,-500.0,0.00019178,2]
[373567624,1753047034896,-500.0,0.00019178,2]
[373567625,1753047034906,-500.0,0.00019178,2]
[373567626,1753047034916,-500.0,0.00019178,2]
[373567627,1753047034926,-500.0,0.00019178,2]
[373567628,1753047034936,-500.0,0.00019178,2]
[373567629,1753047034945,-500.0,0.00019178,2]
[373567630,1753047034955,-500.0,0.00019178,2]
[373567631,1753047034964,-500.0,0.00019178,2]
[373567632,1753047034974,-500.0,0.00019178,2]
[373567633,1753047034983,-500.0,0.00019178,2]
[373567634,1753047034993,-500.0,0.00019178,2]
[373567635,1753047035002,-500.0,0.00019178,2]
[373567636,1753047035012,-500.0,0.00019178,2]
[373567637,1753047035021,-500.0,0.00019178,2]
[373567638,1753047035031,-500.0,0.00019178,2]
[373567639,1753047035040,-500.0,0.00019178,2]
[373567640,1753047035049,-500.0,0.00019178,2]
[373567641,1753047035058,-500.0,0.00019178,2]
[373567642,1753047035068,-500.0,0.00019178,2]
[373567643,1753047035078,-500.0,0.00019178,2]
[373567644,1753047035086,-500.0,0.00019178,2]
[373567645,1753047035096,-500.0,0.00019178,2]
[373567646,1753047035106,-500.0,0.00019178,2]
[373567647,1753047035116,-500.0,0.00019178,2]
[373567648,1753047035125,-400.0,0.00019178,2]
[373567649,1753047035135,-500.0,0.00019178,2]
[373567650,1753047035144,-500.0,0.00019178,2]
[373567651,1753047035158,-500.0,0.00019178,2]
[373567652,1753047035167,-500.0,0.00019178,2]
[373567653,1753047035176,-500.0,0.00019178,2]
[373567654,1753047035186,-500.0,0.00019178,2]
[373567655,1753047035195,-500.0,0.00019178,2]
[373567656,1753047035204,-500.0,0.00019178,2]
[373567657,1753047035214,-500.0,0.00019178,2]
[373567658,1753047035223,-500.0,0.00019178,2]
[373567659,1753047035234,-500.0,0.00019178,2]
[373567660,1753047035244,-500.0,0.00019178,2]
[373567661,1753047035253,-500.0,0.00019178,2]
[373567662,1753047035263,-500.0,0.00019178,2]
[373567663,1753047035272,-500.0,0.00019178,2]
[373567664,1753047035283,-480.0,0.00019178,2]
[373567665,1753047035293,-480.0,0.00019178,2]
[373567666,1753047035303,-460.0,0.00019178,2]
[373567667,1753047035312,-480.0,0.00019178,2]
[373567668,1753047035321,-480.0,0.00019178,2]
[373567669,1753047035330,-545.12,0.00019178,2]
[373567670,1753047035339,-480.0,0.00019178,2]
[373567671,1753047035348,-460.0,0.00019178,2]
[373567672,1753047035358,-2462.49,0.00019178,2]
[373567673,1753047035367,-480.0,0.00019178,2]
[373567674,1753047035376,-480.0,0.00019178,2]
[373567675,1753047035386,-480.0,0.00019178,2]
[373567676,1753047035395,-4977.24,0.00019178,2]
[373567677,1753047035404,-647.0,0.00019178,2]
[373567678,1753047035414,-500.0,0.00019178,2]
[373567679,1753047035424,-480.0,0.00019178,2]
[373567680,1753047035433,-480.0,0.00019178,2]
[373567681,1753047035444,-460.0,0.00019178,2]
[373567682,1753047035455,-1003.5,0.00019178,2]
[373567683,1753047035465,-151.0,0.00019178,2]
[373567684,1753047035474,-152.62,0.00019178,2]
[373567685,1753047035484,-3309.57,0.00019178,2]
[373567686,1753047035493,-3197.42,0.00019178,2]
[373567687,1753047035503,-150.0,0.00019187,4]
[373567688,1753047035512,-150.0,0.00019187,4]
[373567689,1753047035522,-150.0,0.0001922,2]
[373567690,1753047035531,-549.32,0.00019224,2]
[373567691,1753047035540,-1000.0,0.00019233,2]
[373567692,1753047035549,-150.0,0.00019237,4]
[373567693,1753047035559,-150.0,0.00019245,2]
[373567694,1753047035569,-150.0,0.00019258,4]
[373567695,1753047035579,-1000.0,0.0001928,2]
[373567696,1753047035589,-480.0,0.00019287,2]
[373567697,1753047035599,-480.0,0.00019287,2]
[373567698,1753047035609,-545.12,0.00019287,2]
[373567699,1753047035619,-480.0,0.00019287,2]
[373567700,1753047035628,-480.0,0.00019287,2]
[373567701,1753047035638,-480.0,0.00019287,2]
[373567702,1753047035647,-480.0,0.00019287,2]
[373567703,1753047035656,-2462.49,0.00019287,2]
[373567704,1753047035666,-480.0,0.00019287,2]
[373567705,1753047035675,-4977.24,0.00019287,2]
[373567706,1753047035686,-647.0,0.00019287,2]
[373567707,1753047035695,-480.0,0.00019287,2]
[373567708,1753047035705,-480.0,0.00019287,2]
[373567709,1753047035715,-1003.5,0.00019287,2]
[373567710,1753047035724,-1586.4771887,0.00019305,2]
[373567711,1753047035734,-500.0,0.00019307,2]
[373567712,1753047035743,-150.0,0.00019307,4]
[373567713,1753047035752,-150.0,0.00019307,4]
[373567714,1753047035762,-150.0,0.00019307,4]
[373567715,1753047035771,-388.57,0.00019323,2]
[373567716,1753047035780,-159.51,0.00019323,2]
[373567717,1753047035790,-150.0,0.00019325,4]
[373567718,1753047035799,-150.0,0.00019337,4]
[373567719,1753047035809,-508.0,0.00019348,2]
[373567720,1753047035818,-500.39213399,0.00019373,2]
[373567721,1753047035827,-500.0,0.00019373,2]
[373567722,1753047035836,-163.86280465,0.00019373,2]
[373567723,1753047035845,-547.64117749,0.00019373,2]
[373567724,1753047035854,-500.0,0.00019373,2]
[373567725,1753047035864,-500.0,0.00019373,2]
[373567726,1753047035874,-500.0,0.00019373,2]
[373567727,1753047035883,-500.0,0.00019373,2]
[373567728,1753047035892,-500.0,0.00019373,2]
[373567729,1753047035903,-150.0,0.00019379,2]
[373567730,1753047035914,-150.0,0.00019381,4]
[373567731,1753047035923,-273.12905258,0.0001939,2]
[373567732,1753047035935,-408.98196375,0.00019397,2]
[373567733,1753047035945,-480.0,0.00019397,2]
[373567734,1753047035954,-369.88006419,0.00019397,2]
[373567735,1753047035967,-545.12,0.00019397,2]
[373567736,1753047035983,-480.0,0.00019397,2]
[373567737,1753047035992,-480.0,0.00019397,2]
[373567738,1753047036002,-480.0,0.00019397,2]
[373567739,1753047036012,-2462.49,0.00019397,2]
[373567740,1753047036023,-4977.24,0.00019397,2]
[373567741,1753047036033,-647.0,0.00019397,2]
[373567742,1753047036043,-480.0,0.00019397,2]
[373567743,1753047036055,-512.75028299,0.00019397,2]
[373567744,1753047036065,-1003.5,0.00019397,2]
[373567745,1753047036075,-151.0,0.00019399,2]
[373567746,1753047036085,-151.0,0.00019399,2]
[373567747,1753047036095,-151.0,0.000194,2]
[373567748,1753047036107,-151.0,0.000194,2]
[373567749,1753047036117,-151.0,0.000194,2]
[373567750,1753047036129,-151.0,0.000194,2]
[373567751,1753047036138,-151.0,0.000194,2]
[373567752,1753047036148,-151.0,0.000194,2]
[373567753,1753047036160,-1193162.15160243,0.000194,2]
[373567754,1753047036170,-495.58852644,0.000194,2]
[373567755,1753047036179,-150.28724028,0.00019405,2]
[373567756,1753047036190,-150.0,0.00019412,4]
[373567757,1753047036201,-2263.141,0.00019436,2]
[373567758,1753047036211,-170.895,0.00019436,2]
[373567759,1753047036222,-150.0,0.00019487,4]
[373567760,1753047036233,-150.0,0.00019487,4]
[373567761,1753047036243,-150.0,0.000195,4]
[373567762,1753047036252,-150.0,0.00019505,4]
[373567763,1753047036262,-480.0,0.00019506,2]
[373567764,1753047036271,-545.12,0.00019506,2]
[373567765,1753047036280,-480.0,0.00019506,2]
[373567766,1753047036289,-480.0,0.00019506,2]
[373567767,1753047036299,-2462.49,0.00019506,2]
[373567768,1753047036308,-647.0,0.00019506,2]
[373567769,1753047036318,-4977.24,0.00019506,2]
[373567770,1753047036327,-480.0,0.00019506,2]
[373567771,1753047036336,-1003.5,0.00019506,2]
[373567772,1753047036346,-150.0,0.00019517,4]
[373567773,1753047036355,-150.0,0.00019517,4]
[373567774,1753047036366,-336.87531835,0.00019528,2]
[373567775,1753047036376,-150.0,0.00019587,4]
[373567776,1753047036386,-215.85,0.00019589,2]
[373567777,1753047036395,-579.544767,0.00019599,2]
[373567778,1753047036404,-600.0,0.0001961,2]
[373567779,1753047036414,-7681.20591386,0.0001961,2]
[373567780,1753047036423,-4784.97124284,0.00019611,2]
[373567781,1753047036433,-480.0,0.00019616,2]
[373567782,1753047036443,-545.12,0.00019616,2]
[373567783,1753047036452,-480.0,0.00019616,2]
[373567784,1753047036462,-480.0,0.00019616,2]
[373567785,1753047036471,-647.0,0.00019616,2]
[373567786,1753047036481,-4977.24,0.00019616,2]
[373567787,1753047036490,-2462.49,0.00019616,2]
[373567788,1753047036500,-480.0,0.00019616,2]
[373567789,1753047036509,-916.03,0.00019622,2]
[373567790,1753047036519,-553.51,0.00019622,2]
[373567791,1753047036528,-150.0,0.00019628,4]
[373567792,1753047036537,-150.0,0.00019637,4]
[373567793,1753047036547,-150.0,0.00019675,4]
[373567794,1753047036557,-241.17,0.00019703,2]
[373567795,1753047036566,-480.0,0.00019726,2]
[373567796,1753047036576,-545.12,0.00019726,2]
[373567797,1753047036585,-480.0,0.00019726,2]
[373567798,1753047036595,-480.0,0.00019726,2]
[373567799,1753047036605,-647.0,0.00019726,2]
[373567800,1753047036615,-4977.24,0.00019726,2]
[373567801,1753047036625,-415.27821213,0.00019726,2]
[373567802,1753047036635,-2462.49,0.00019726,2]
[373567803,1753047036646,-480.0,0.00019726,2]
[373567804,1753047036656,-150.0,0.00019727,4]
[373567805,1753047036666,-150.0,0.00019727,4]
[373567806,1753047036676,-150.0,0.00019727,4]
[373567807,1753047036686,-331.4,0.0001973,2]
[373567808,1753047036695,-150.0,0.00019743,2]
[373567809,1753047036705,-207.57696943,0.00019747,2]
[373567810,1753047036715,-150.0,0.00019752,4]
[373567811,1753047036727,-579.59986079,0.00019756,2]
[373567812,1753047036740,-150.0,0.00019762,4]
[373567813,1753047036750,-150.0,0.00019776,2]
[373567814,1753047036760,-150.0,0.00019778,2]
[373567815,1753047036769,-150.0,0.00019787,4]
[373567816,1753047036779,-150.0,0.00019787,4]
[373567817,1753047036789,-187.99085168,0.000198,2]
[373567818,1753047036798,-203.45,0.00019825,2]
[373567819,1753047036808,-150.0,0.00019825,2]
[373567820,1753047036818,-500.0,0.00019825,2]
[373567821,1753047036828,-2771.0,0.00019825,2]
[373567822,1753047036838,-438.0,0.00019825,2]
[373567823,1753047036847,-500.0,0.00019825,2]
[373567824,1753047036857,-388.57,0.00019834,2]
[373567825,1753047036867,-159.51,0.00019834,2]
[373567826,1753047036877,-299.27772587,0.00019835,2]
[373567827,1753047036887,-545.12,0.00019835,2]
[373567828,1753047036897,-480.0,0.00019835,2]
[373567829,1753047036907,-480.0,0.00019835,2]
[373567830,1753047036916,-647.0,0.00019835,2]
[373567831,1753047036926,-4977.24,0.00019835,2]
[373567832,1753047036936,-480.0,0.00019835,2]
[373567833,1753047036946,-2462.49,0.00019835,2]
[373567834,1753047036956,-200.0,0.0001984,2]
[373567835,1753047036966,-150.0,0.0001985,4]
[373567836,1753047036976,-500.0,0.00019873,2]
[373567837,1753047036985,-500.0,0.00019873,2]
[373567838,1753047036995,-500.0,0.00019873,2]
[373567839,1753047037005,-503.02074306,0.00019873,2]
[373567840,1753047037015,-150.0,0.00019875,4]
[373567841,1753047037024,-221.07792686,0.00019883,2]
[373567842,1753047037034,-275.85402684,0.00019883,2]
[373567843,1753047037044,-239.84119403,0.00019883,2]
[373567844,1753047037054,-480.0,0.00019889,2]
[373567845,1753047037063,-8431.69,0.00019889,2]
[373567846,1753047037073,-440.0,0.00019889,2]
[373567847,1753047037083,-480.0,0.00019889,2]
[373567848,1753047037093,-480.0,0.00019889,2]
[373567849,1753047037103,-34341.6686,0.0001989,2]
[373567850,1753047037112,-1500.0,0.0001989,2]
[373567851,1753047037122,-1000.0,0.0001989,2]
[373567852,1753047037132,-42473.86363642,0.000199,2]
[373567853,1753047037148,-628.5266821,0.000199,2]
[373567854,1753047037163,-1032.03575583,0.000199,2]
[373567855,1753047037175,-2051.75830857,0.000199,2]
[373567856,1753047037214,-1003.5,0.00019616,2]
[373567857,1753047037224,-8950.70811585,0.000199,2]
[373567858,1753047037242,-3273.58082136,0.000199,2]
[373567859,1753047037253,-1106.93304837,0.000199,2]
[373567943,1753047039145,-750.66,0.00019178,2]
[373567945,1753047039157,-3173.78,0.00019178,2]
[373567947,1753047039167,-480.0,0.00019287,2]
[373567948,1753047039176,-750.66,0.00019287,2]
[373567950,1753047039185,-586.24701815,0.000193,2]
[373567956,1753047039235,-1883.0046174,0.000193,2]
[373567962,1753047039287,-780.07732679,0.000193,2]
[373567964,1753047039297,-480.0,0.00019397,2]
[373567965,1753047039306,-750.66,0.00019397,2]
[373567966,1753047039315,-480.0,0.00019506,2]
[373567967,1753047039325,-750.66,0.00019506,2]
[373567968,1753047039334,-480.0,0.00019616,2]
[373567969,1753047039343,-750.66,0.00019616,2]
[373567970,1753047039352,-1003.5,0.00019726,2]
[373567971,1753047039362,-480.0,0.00019726,2]
[373567972,1753047039371,-1003.5,0.00019835,2]
[373567973,1753047039380,-480.0,0.00019835,2]
[373567974,1753047039390,-3393.33657707,0.0001989,2]
[373567975,1753047039399,-343.11628638,0.0001989,2]
[373567999,1753047039682,-2610.3139784,0.0001989,2]
[373568016,1753047040718,-568.87794537,0.00019078,2]
[373568017,1753047040728,-750.66,0.00019726,2]
[373568019,1753047040738,-3249.32896234,0.00019773,2]
[373568021,1753047040747,-750.66,0.00019835,2]
[373568023,1753047040756,-109294.08816424,0.0001989,2]
[373568025,1753047040766,-59773.6492315,0.000199,2]
[373568027,1753047040775,-800.0,0.000199,7]
[373568028,1753047040784,-151.0,0.000199,2]
[373568030,1753047040794,-151.0,0.000199,2]
[373568033,1753047040803,-151.0,0.000199,2]
[373568034,1753047040812,-151.0,0.000199,2]
[373568037,1753047040823,-151.0,0.000199,2]
[373568038,1753047040832,-1000.0,0.00019906,2]
[373568040,1753047040841,-500.0,0.00019921,2]